[Event "*** Titled Tuesday Blitz"]
[Site "Chess.com"]
[Date "2020.04.21"]
[Round "5"]
[White "Falia-p"]
[Black "stoleriu"]
[Result "0-1"]
[WhiteElo "2318"]
[BlackElo "2501"]
[TimeControl "180+1"]
[EndTime "10:59:52 PDT"]
[Termination "stoleriu won by resignation"]

1. e4 {[%clk 0:03:00.9]} 1... e6 {[%clk 0:03:00.4]} 2. d4 {[%clk 0:02:59.1]}
2... d5 {[%clk 0:03:01]} 3. Nc3 {[%clk 0:02:59.1]} 3... Bb4 {[%clk 0:02:57.2]}
4. e5 {[%clk 0:02:58.9]} 4... c5 {[%clk 0:02:55.7]} 5. a3 {[%clk 0:02:58.8]}
5... Ba5 {[%clk 0:02:51.7]} 6. b4 {[%clk 0:02:58]} 6... cxd4 {[%clk 0:02:49.4]}
7. Nb5 {[%clk 0:02:54.5]} 7... Bb6 {[%clk 0:02:38.9]} 8. Nf3 {[%clk 0:02:48.9]}
8... Nc6 {[%clk 0:02:36.2]} 9. Bb2 {[%clk 0:02:41.1]} 9... a6 {[%clk 0:02:33.7]}
10. Nbxd4 {[%clk 0:02:39.4]} 10... Nxd4 {[%clk 0:02:32.9]} 11. Bxd4 {[%clk
0:02:38.6]} 11... Ne7 {[%clk 0:02:31.4]} 12. Bd3 {[%clk 0:02:35.3]} 12... Bd7
{[%clk 0:02:30.1]} 13. Qe2 {[%clk 0:02:32.5]} 13... Nc6 {[%clk 0:02:23.5]} 14.
Bxb6 {[%clk 0:02:30.6]} 14... Qxb6 {[%clk 0:02:24.4]} 15. O-O {[%clk 0:02:30.2]}
15... h6 {[%clk 0:02:22.2]} 16. c4 {[%clk 0:02:28.4]} 16... dxc4 {[%clk
0:02:20]} 17. Bxc4 {[%clk 0:02:28.4]} 17... O-O {[%clk 0:02:20.5]} 18. Rfd1
{[%clk 0:02:26.5]} 18... Rfd8 {[%clk 0:02:20.8]} 19. Rd6 {[%clk 0:02:24.6]}
19... Qc7 {[%clk 0:02:16.8]} 20. Rad1 {[%clk 0:02:22.6]} 20... Be8 {[%clk
0:02:06]} 21. Bb3 {[%clk 0:02:16.7]} 21... Ne7 {[%clk 0:02:00.6]} 22. Qd3 {[%clk
0:02:13.1]} 22... Rdc8 {[%clk 0:01:51.5]} 23. Nd4 {[%clk 0:02:02.9]} 23... Kh8
{[%clk 0:01:44]} 24. Bc2 {[%clk 0:01:57.2]} 24... g6 {[%clk 0:01:43.5]} 25. Qh3
{[%clk 0:01:50.7]} 25... Kh7 {[%clk 0:01:39.1]} 26. Be4 {[%clk 0:01:49.3]} 26...
Ba4 {[%clk 0:01:30.5]} 27. Re1 {[%clk 0:01:28.9]} 27... Rd8 {[%clk 0:01:27.3]}
28. Qg3 {[%clk 0:01:23.4]} 28... Rac8 {[%clk 0:01:15.4]} 29. h4 {[%clk
0:01:22.9]} 29... Nf5 {[%clk 0:00:55.9]} 30. Bxf5 {[%clk 0:01:18.5]} 30... gxf5
{[%clk 0:00:56.8]} 31. h5 {[%clk 0:01:10.3]} 31... Rg8 {[%clk 0:00:54.7]} 32.
Qf3 {[%clk 0:00:58.4]} 32... Qc3 {[%clk 0:00:48.3]} 33. Re3 {[%clk 0:00:55.3]}
33... Qc1+ {[%clk 0:00:41.3]} 34. Kh2 {[%clk 0:00:54.8]} 34... Qc7 {[%clk
0:00:34.9]} 35. Nxf5 {[%clk 0:00:52.9]} 35... Bc6 {[%clk 0:00:16.5]} 36. Qf4
{[%clk 0:00:42.5]} 36... Rxg2+ {[%clk 0:00:16.2]} 37. Kh3 {[%clk 0:00:42.8]}
37... Rg5 {[%clk 0:00:16.2]} 38. Ng3 {[%clk 0:00:38.5]} 38... Rcg8 {[%clk
0:00:14.2]} 39. Red3 {[%clk 0:00:30.1]} 39... Qe7 {[%clk 0:00:13.5]} 40. Qf6
{[%clk 0:00:29.8]} 40... Qxf6 {[%clk 0:00:10.2]} 41. exf6 {[%clk 0:00:30.7]}
41... Re5 {[%clk 0:00:06.8]} 42. Re3 {[%clk 0:00:23.9]} 42... Rxe3 {[%clk
0:00:06.3]} 43. fxe3 {[%clk 0:00:24.8]} 43... Rg5 {[%clk 0:00:05.8]} 44. e4
{[%clk 0:00:21]} 44... Rg8 {[%clk 0:00:04.4]} 45. Rd2 {[%clk 0:00:19.5]} 45...
Rc8 {[%clk 0:00:04.1]} 46. e5 {[%clk 0:00:19.5]} 46... Bd5 {[%clk 0:00:03.9]}
47. Nf1 {[%clk 0:00:18.4]} 47... Rc3+ {[%clk 0:00:04]} 48. Kg4 {[%clk
0:00:17.8]} 48... Rxa3 {[%clk 0:00:04.3]} 49. Kf4 {[%clk 0:00:17.8]} 49... Rf3+
{[%clk 0:00:03.5]} 50. Kg4 {[%clk 0:00:17.9]} 50... Rf5 {[%clk 0:00:04.4]} 51.
Ne3 {[%clk 0:00:17.2]} 51... Rxe5 {[%clk 0:00:04.2]} 52. Nxd5 {[%clk 0:00:16.8]}
52... Rxd5 {[%clk 0:00:04.5]} 53. Rc2 {[%clk 0:00:17.2]} 53... Rd4+ {[%clk
0:00:04.1]} 54. Kg3 {[%clk 0:00:16.6]} 54... Rxb4 {[%clk 0:00:04.3]} 55. Rc7
{[%clk 0:00:16.5]} 55... Kg8 {[%clk 0:00:03.6]} 56. Rc8+ {[%clk 0:00:16.6]}
56... Kh7 {[%clk 0:00:04.1]} 57. Rf8 {[%clk 0:00:17.1]} 57... Rb5 {[%clk
0:00:04.4]} 58. Rxf7+ {[%clk 0:00:17]} 58... Kg8 {[%clk 0:00:05.1]} 59. Rg7+
{[%clk 0:00:17.1]} 59... Kf8 {[%clk 0:00:05.2]} 60. Kg4 {[%clk 0:00:17.3]} 60...
a5 {[%clk 0:00:04.7]} 61. Rh7 {[%clk 0:00:15.9]} 61... a4 {[%clk 0:00:04.9]} 62.
Rxh6 {[%clk 0:00:16]} 62... a3 {[%clk 0:00:05.6]} 63. Rh8+ {[%clk 0:00:16.3]}
63... Kf7 {[%clk 0:00:05.7]} 64. Ra8 {[%clk 0:00:16.3]} 64... Kxf6 {[%clk
0:00:05]} 65. h6 {[%clk 0:00:16.6]} 65... Rg5+ {[%clk 0:00:04.7]} 66. Kh4 {[%clk
0:00:16.3]} 66... Rg1 {[%clk 0:00:04.5]} 67. Kh5 {[%clk 0:00:14.9]} 67... Rh1+
{[%clk 0:00:05.4]} 68. Kg4 {[%clk 0:00:14.9]} 68... Rxh6 {[%clk 0:00:05.4]} 69.
Rxa3 {[%clk 0:00:15.4]} 69... Rg6+ {[%clk 0:00:05.8]} 70. Kf4 {[%clk 0:00:14.7]}
70... e5+ {[%clk 0:00:06]} 71. Ke4 {[%clk 0:00:14.1]} 71... Rg4+ {[%clk
0:00:05.5]} 72. Kd5 {[%clk 0:00:13.8]} 72... Rd4+ {[%clk 0:00:05]} 73. Kc5
{[%clk 0:00:13.5]} 73... Rd1 {[%clk 0:00:05.9]} 74. Rb3 {[%clk 0:00:13.2]} 74...
e4 {[%clk 0:00:06]} 75. Rxb7 {[%clk 0:00:12.7]} 75... Ke5 {[%clk 0:00:06]} 76.
Re7+ {[%clk 0:00:12.2]} 76... Kf4 {[%clk 0:00:06.3]} 77. Rf7+ {[%clk 0:00:12.6]}
77... Kg3 {[%clk 0:00:05.6]} 78. Kc4 {[%clk 0:00:12.1]} 78... e3 {[%clk
0:00:05.8]} 79. Re7 {[%clk 0:00:12.6]} 79... Kf2 {[%clk 0:00:05.1]} 80. Rf7+
{[%clk 0:00:12.8]} 80... Ke2 {[%clk 0:00:05.2]} 81. Kc3 {[%clk 0:00:12.2]} 81...
Rd8 {[%clk 0:00:05.4]} 82. Rf6 {[%clk 0:00:11.2]} 82... Ke1 {[%clk 0:00:05.3]}
83. Re6 {[%clk 0:00:09.9]} 83... e2 {[%clk 0:00:05.4]} 84. Kc2 {[%clk
0:00:10.2]} 84... Rc8+ {[%clk 0:00:04.1]} 85. Kd3 {[%clk 0:00:10.4]} 85... Kd1
{[%clk 0:00:04.7]} 86. Rxe2 {[%clk 0:00:07.4]} 86... Rd8+ {[%clk 0:00:04.9]} 87.
Kc3 {[%clk 0:00:07.8]} 87... Kxe2 {[%clk 0:00:03.8]} 88. Kc4 {[%clk 0:00:08.7]}
88... Ke3 {[%clk 0:00:04.7]} 89. Kc5 {[%clk 0:00:09.4]} 89... Ke4 {[%clk
0:00:05.6]} 90. Kc6 {[%clk 0:00:10.3]} 90... Rd1 {[%clk 0:00:06.5]} 91. Kc7
{[%clk 0:00:11.2]} 91... Ke5 {[%clk 0:00:06.7]} 92. Kc6 {[%clk 0:00:12.1]} 92...
Rd2 {[%clk 0:00:06.6]} 93. Kb6 {[%clk 0:00:13]} 93... Rc2 {[%clk 0:00:06.4]} 94.
Kb7 {[%clk 0:00:13.1]} 94... Kd4 {[%clk 0:00:07.3]} 95. Kb6 {[%clk 0:00:13.8]}
95... Kd5 {[%clk 0:00:07.9]} 96. Ka6 {[%clk 0:00:14.7]} 96... Rb2 {[%clk
0:00:07.2]} 97. Ka7 {[%clk 0:00:14.7]} 97... Kc4 {[%clk 0:00:08.1]} 98. Ka6
{[%clk 0:00:15.2]} 98... Kc5 {[%clk 0:00:09]} 99. Ka7 {[%clk 0:00:15.7]} 99...
Kc6 {[%clk 0:00:08.8]} 100. Ka8 {[%clk 0:00:16.6]} 100... Kc7 {[%clk 0:00:08.5]}
0-1

[Event "*** Titled Tuesday Blitz"]
[Site "Chess.com"]
[Date "2020.04.21"]
[Round "5"]
[White "ArnaudovP"]
[Black "Jeffinho023"]
[Result "1/2-1/2"]
[WhiteElo "2631"]
[BlackElo "2490"]
[TimeControl "180+1"]
[EndTime "10:59:58 PDT"]
[Termination "Game drawn by repetition"]

1. Nf3 {[%clk 0:03:00.3]} 1... Nf6 {[%clk 0:02:59.4]} 2. c4 {[%clk 0:02:57.8]}
2... c6 {[%clk 0:02:58.3]} 3. g3 {[%clk 0:02:56.6]} 3... d5 {[%clk 0:02:57.7]}
4. Bg2 {[%clk 0:02:55.7]} 4... Bf5 {[%clk 0:02:57.6]} 5. cxd5 {[%clk 0:02:53.9]}
5... cxd5 {[%clk 0:02:57.3]} 6. Qb3 {[%clk 0:02:50.7]} 6... Qb6 {[%clk
0:02:56.3]} 7. Qxb6 {[%clk 0:02:48.9]} 7... axb6 {[%clk 0:02:57.2]} 8. Nc3
{[%clk 0:02:44.4]} 8... e6 {[%clk 0:02:48.5]} 9. d3 {[%clk 0:02:43.7]} 9... Bb4
{[%clk 0:02:33.1]} 10. Bd2 {[%clk 0:02:41.3]} 10... Nbd7 {[%clk 0:02:26.5]} 11.
a3 {[%clk 0:02:39.8]} 11... Be7 {[%clk 0:02:23.8]} 12. O-O {[%clk 0:02:36]}
12... O-O {[%clk 0:02:22.1]} 13. b4 {[%clk 0:02:34.2]} 13... Rfc8 {[%clk
0:02:19.8]} 14. Rfc1 {[%clk 0:02:22.2]} 14... Bg4 {[%clk 0:02:18.9]} 15. Nb5
{[%clk 0:02:17.2]} 15... Bxf3 {[%clk 0:02:13.2]} 16. Bxf3 {[%clk 0:02:14.5]}
16... h6 {[%clk 0:02:07.6]} 17. Be3 {[%clk 0:02:10.1]} 17... Rc6 {[%clk
0:01:55.8]} 18. Bd2 {[%clk 0:02:02.7]} 18... Kf8 {[%clk 0:01:40.5]} 19. e3
{[%clk 0:01:49.8]} 19... Ke8 {[%clk 0:01:36.6]} 20. Nc7+ {[%clk 0:01:47.4]}
20... Rxc7 {[%clk 0:01:34.3]} 21. Rxc7 {[%clk 0:01:46.3]} 21... Rb8 {[%clk
0:01:30.7]} 22. d4 {[%clk 0:01:42.8]} 22... Bd6 {[%clk 0:01:29.6]} 23. Rcc1
{[%clk 0:01:40.2]} 23... Kd8 {[%clk 0:01:29.2]} 24. Be2 {[%clk 0:01:38.1]} 24...
Ne4 {[%clk 0:01:26]} 25. Be1 {[%clk 0:01:35.1]} 25... Ra8 {[%clk 0:01:23.9]} 26.
b5 {[%clk 0:01:29.9]} 26... Rxa3 {[%clk 0:01:18.4]} 27. Rxa3 {[%clk 0:01:28.4]}
27... Bxa3 {[%clk 0:01:19.3]} 28. Ra1 {[%clk 0:01:25.6]} 28... Be7 {[%clk
0:00:49.5]} 29. g4 {[%clk 0:01:23]} 29... Ndf6 {[%clk 0:00:37.3]} 30. f3 {[%clk
0:01:16.4]} 30... Nd6 {[%clk 0:00:36.8]} 31. Bg3 {[%clk 0:01:12.3]} 31... Kd7
{[%clk 0:00:22.5]} 32. Bd3 {[%clk 0:01:10.9]} 32... Nfe8 {[%clk 0:00:22]} 33. e4
{[%clk 0:01:04.2]} 33... Nc7 {[%clk 0:00:19.4]} 34. Bxd6 {[%clk 0:00:58.3]}
34... Bxd6 {[%clk 0:00:19.2]} 35. e5 {[%clk 0:00:58]} 35... Bb4 {[%clk
0:00:19.2]} 36. Rc1 {[%clk 0:00:56]} 36... Bd2 {[%clk 0:00:18.7]} 37. Rxc7+
{[%clk 0:00:47.2]} 37... Kxc7 {[%clk 0:00:17.8]} 38. Kf2 {[%clk 0:00:44.8]}
38... Bc1 {[%clk 0:00:18]} 39. Bh7 {[%clk 0:00:41.6]} 39... Kd7 {[%clk
0:00:18.1]} 40. h4 {[%clk 0:00:39]} 40... Ke7 {[%clk 0:00:19]} 41. h5 {[%clk
0:00:38]} 41... Bf4 {[%clk 0:00:18.5]} 42. Ke2 {[%clk 0:00:36.9]} 42... f6
{[%clk 0:00:18.9]} 43. exf6+ {[%clk 0:00:35]} 43... gxf6 {[%clk 0:00:19.8]} 44.
Bg8 {[%clk 0:00:32.8]} 44... Kd6 {[%clk 0:00:20.7]} 45. Kd3 {[%clk 0:00:30.8]}
45... e5 {[%clk 0:00:20.6]} 46. dxe5+ {[%clk 0:00:29.7]} 46... fxe5 {[%clk
0:00:21.5]} 47. Bf7 {[%clk 0:00:29.4]} 47... Kc5 {[%clk 0:00:21.3]} 48. Be8
{[%clk 0:00:27]} 48... Kd6 {[%clk 0:00:21.6]} 49. Bf7 {[%clk 0:00:25.7]} 49...
Bg5 {[%clk 0:00:21.7]} 50. Bg6 {[%clk 0:00:21]} 50... Ke6 {[%clk 0:00:21.4]} 51.
Be8 {[%clk 0:00:20.4]} 51... Ke7 {[%clk 0:00:20.8]} 52. Bg6 {[%clk 0:00:19.7]}
52... Kd6 {[%clk 0:00:20.8]} 53. Bf7 {[%clk 0:00:18.8]} 53... Bd8 {[%clk
0:00:20.3]} 54. Bg6 {[%clk 0:00:17.4]} 54... Ke6 {[%clk 0:00:18.8]} 55. Be8
{[%clk 0:00:16.9]} 55... Kf6 {[%clk 0:00:18.7]} 56. Bd7 {[%clk 0:00:16]} 56...
Ke7 {[%clk 0:00:18.9]} 57. Bc8 {[%clk 0:00:15.8]} 57... Kd6 {[%clk 0:00:15.9]}
58. Bxb7 {[%clk 0:00:14.6]} 58... Kc5 {[%clk 0:00:16.8]} 59. Bc6 {[%clk
0:00:13.8]} 59... Bg5 {[%clk 0:00:17]} 60. Be8 {[%clk 0:00:13.1]} 60... Bf4
{[%clk 0:00:16.2]} 61. Bc6 {[%clk 0:00:13]} 61... Kd6 {[%clk 0:00:15.9]} 62. Be8
{[%clk 0:00:12.9]} 62... Kc5 {[%clk 0:00:16]} 63. Bc6 {[%clk 0:00:13.7]} 63...
Kd6 {[%clk 0:00:13.1]} 64. Ba8 {[%clk 0:00:13.9]} 64... Ke6 {[%clk 0:00:12.2]}
65. Bb7 {[%clk 0:00:13.7]} 65... Bg5 {[%clk 0:00:12.3]} 66. Bc8+ {[%clk
0:00:12.7]} 66... Kf6 {[%clk 0:00:12]} 67. Bd7 {[%clk 0:00:11.9]} 67... Bc1
{[%clk 0:00:11.2]} 68. Bc6 {[%clk 0:00:12.8]} 68... Ke6 {[%clk 0:00:11.2]} 69.
Ke2 {[%clk 0:00:13.5]} 69... Ba3 {[%clk 0:00:11.2]} 70. Kd3 {[%clk 0:00:13.8]}
70... Bc5 {[%clk 0:00:11.4]} 71. Ke2 {[%clk 0:00:12.9]} 71... Bf8 {[%clk
0:00:11.3]} 72. Kd3 {[%clk 0:00:12.6]} 72... Be7 {[%clk 0:00:11.5]} 73. Ke3
{[%clk 0:00:12.5]} 73... Bg5+ {[%clk 0:00:11.4]} 74. Kd3 {[%clk 0:00:12.9]}
74... Kd6 {[%clk 0:00:11.8]} 75. Ba8 {[%clk 0:00:12.9]} 75... Kc5 {[%clk
0:00:11.5]} 76. Bc6 {[%clk 0:00:13.5]} 76... Bf4 {[%clk 0:00:12.4]} 77. Be8
{[%clk 0:00:12.2]} 77... Kd6 {[%clk 0:00:10.8]} 78. Bc6 {[%clk 0:00:11.8]} 78...
Kc5 {[%clk 0:00:10.9]} 79. Be8 {[%clk 0:00:11.2]} 79... Kd6 {[%clk 0:00:11.3]}
80. Bf7 {[%clk 0:00:10.3]} 80... Kc5 {[%clk 0:00:10.5]} 81. Be8 {[%clk
0:00:09.5]} 1/2-1/2

[Event "*** Titled Tuesday Blitz"]
[Site "Chess.com"]
[Date "2020.04.21"]
[Round "5"]
[White "Bulldog167"]
[Black "igorkovalenko"]
[Result "1/2-1/2"]
[WhiteElo "2785"]
[BlackElo "2879"]
[TimeControl "180+1"]
[EndTime "11:00:19 PDT"]
[Termination "Game drawn by stalemate"]

1. e4 {[%clk 0:03:00.9]} 1... c5 {[%clk 0:02:59.3]} 2. Nf3 {[%clk 0:03:01]} 2...
e6 {[%clk 0:02:59.7]} 3. d3 {[%clk 0:03:00.8]} 3... Nc6 {[%clk 0:02:59.6]} 4. g3
{[%clk 0:03:00.8]} 4... g6 {[%clk 0:02:59.8]} 5. Bg2 {[%clk 0:02:59.9]} 5... Bg7
{[%clk 0:03:00.3]} 6. O-O {[%clk 0:02:59.9]} 6... Nge7 {[%clk 0:03:00.7]} 7. Nc3
{[%clk 0:02:57.1]} 7... O-O {[%clk 0:03:00.1]} 8. Bg5 {[%clk 0:02:56.9]} 8... h6
{[%clk 0:02:59.6]} 9. Be3 {[%clk 0:02:57.2]} 9... d6 {[%clk 0:02:59.2]} 10. Qd2
{[%clk 0:02:56.5]} 10... Kh7 {[%clk 0:02:59.2]} 11. h3 {[%clk 0:02:53]} 11...
Nd4 {[%clk 0:02:55.7]} 12. Rab1 {[%clk 0:02:42.5]} 12... Nec6 {[%clk 0:02:51.5]}
13. Ne2 {[%clk 0:02:39.2]} 13... a5 {[%clk 0:02:39]} 14. c3 {[%clk 0:02:35.9]}
14... Nxf3+ {[%clk 0:02:35]} 15. Bxf3 {[%clk 0:02:36.8]} 15... e5 {[%clk
0:02:35.3]} 16. Bg2 {[%clk 0:02:34.6]} 16... Be6 {[%clk 0:02:30.5]} 17. a4
{[%clk 0:02:32.4]} 17... Qd7 {[%clk 0:02:17.1]} 18. Kh2 {[%clk 0:02:32.4]} 18...
f5 {[%clk 0:02:15.8]} 19. f4 {[%clk 0:02:32.5]} 19... b6 {[%clk 0:02:11]} 20.
exf5 {[%clk 0:02:27.7]} 20... gxf5 {[%clk 0:02:10.8]} 21. d4 {[%clk 0:02:23.4]}
21... exd4 {[%clk 0:02:01.3]} 22. cxd4 {[%clk 0:02:24.3]} 22... Bc4 {[%clk
0:01:55]} 23. dxc5 {[%clk 0:02:21.6]} 23... bxc5 {[%clk 0:01:53.5]} 24. Rfe1
{[%clk 0:02:00.5]} 24... Rae8 {[%clk 0:01:47.6]} 25. b3 {[%clk 0:01:29.9]} 25...
Bxe2 {[%clk 0:01:45.9]} 26. Rxe2 {[%clk 0:01:30.3]} 26... Nd4 {[%clk 0:01:44]}
27. Bxd4 {[%clk 0:01:30.4]} 27... Bxd4 {[%clk 0:01:44.9]} 28. Bd5 {[%clk
0:01:29.6]} 28... Rxe2+ {[%clk 0:01:43.4]} 29. Qxe2 {[%clk 0:01:29.8]} 29... Re8
{[%clk 0:01:44]} 30. Qd3 {[%clk 0:01:23.4]} 30... Re3 {[%clk 0:01:43.4]} 31. Qc2
{[%clk 0:01:10.8]} 31... h5 {[%clk 0:01:06.4]} 32. g4 {[%clk 0:00:57.9]} 32...
hxg4 {[%clk 0:01:06.4]} 33. hxg4 {[%clk 0:00:58.3]} 33... Kg6 {[%clk 0:01:06.8]}
34. Qxf5+ {[%clk 0:00:51.2]} 34... Qxf5 {[%clk 0:01:07.4]} 35. gxf5+ {[%clk
0:00:52.1]} 35... Kxf5 {[%clk 0:01:08.3]} 36. Rf1 {[%clk 0:00:49.3]} 36... Rc3
{[%clk 0:00:59]} 37. Kg2 {[%clk 0:00:41.7]} 37... Be3 {[%clk 0:00:37.9]} 38. Kf3
{[%clk 0:00:30.7]} 38... Bxf4+ {[%clk 0:00:35.5]} 39. Ke2 {[%clk 0:00:31.2]}
39... Re3+ {[%clk 0:00:27.3]} 40. Kf2 {[%clk 0:00:26.4]} 40... Rd3 {[%clk
0:00:23.5]} 41. Bg8 {[%clk 0:00:26.4]} 41... Ke5 {[%clk 0:00:14.9]} 42. Re1+
{[%clk 0:00:20.6]} 42... Kd4 {[%clk 0:00:14.2]} 43. Re8 {[%clk 0:00:20.9]} 43...
Be5 {[%clk 0:00:11.5]} 44. Bc4 {[%clk 0:00:15.3]} 44... Rd2+ {[%clk 0:00:10.3]}
45. Ke1 {[%clk 0:00:15.2]} 45... Rh2 {[%clk 0:00:10.4]} 46. Ra8 {[%clk
0:00:10.6]} 46... Ke3 {[%clk 0:00:10.7]} 47. Kd1 {[%clk 0:00:09.8]} 47... Bb2
{[%clk 0:00:07.7]} 48. Rd8 {[%clk 0:00:06.1]} 48... Rd2+ {[%clk 0:00:06.7]} 49.
Ke1 {[%clk 0:00:05.8]} 49... Bc3 {[%clk 0:00:07]} 50. Kf1 {[%clk 0:00:06.1]}
50... Rf2+ {[%clk 0:00:07.2]} 51. Kg1 {[%clk 0:00:06.6]} 51... Rf6 {[%clk
0:00:06.3]} 52. Kg2 {[%clk 0:00:06.5]} 52... Bb4 {[%clk 0:00:06.2]} 53. Re8+
{[%clk 0:00:06]} 53... Kd4 {[%clk 0:00:06.2]} 54. Rd8 {[%clk 0:00:05.7]} 54...
Bd2 {[%clk 0:00:06.4]} 55. Rd7 {[%clk 0:00:05.9]} 55... Bf4 {[%clk 0:00:06.4]}
56. Kf3 {[%clk 0:00:05.7]} 56... Be5+ {[%clk 0:00:06.6]} 57. Ke2 {[%clk
0:00:06]} 57... Kc3 {[%clk 0:00:07]} 58. Ke3 {[%clk 0:00:05.1]} 58... Rf4 {[%clk
0:00:05.9]} 59. Rd8 {[%clk 0:00:04.4]} 59... Rd4 {[%clk 0:00:05.9]} 60. Ke2
{[%clk 0:00:04.7]} 60... Rd2+ {[%clk 0:00:05.9]} 61. Ke3 {[%clk 0:00:05.2]}
61... Rd4 {[%clk 0:00:06.8]} 62. Ke2 {[%clk 0:00:05.6]} 62... Re4+ {[%clk
0:00:06.8]} 63. Kf3 {[%clk 0:00:06]} 63... Kd4 {[%clk 0:00:07.3]} 64. Rd7 {[%clk
0:00:04.4]} 64... Rf4+ {[%clk 0:00:07.5]} 65. Ke2 {[%clk 0:00:05]} 65... Rh4
{[%clk 0:00:07.8]} 66. Rd8 {[%clk 0:00:04.8]} 66... Rh2+ {[%clk 0:00:08.7]} 67.
Kf3 {[%clk 0:00:05.4]} 67... Rh3+ {[%clk 0:00:09.1]} 68. Ke2 {[%clk 0:00:04.9]}
68... Rh5 {[%clk 0:00:08.9]} 69. Rd7 {[%clk 0:00:04.9]} 69... Rf5 {[%clk
0:00:08.4]} 70. Rd8 {[%clk 0:00:05]} 70... Bg3 {[%clk 0:00:08.4]} 71. Rd7 {[%clk
0:00:04]} 71... d5 {[%clk 0:00:08.6]} 72. Rd8 {[%clk 0:00:02.4]} 72... Re5+
{[%clk 0:00:07.7]} 73. Kd2 {[%clk 0:00:02.1]} 73... Bf4+ {[%clk 0:00:07.9]} 74.
Kd1 {[%clk 0:00:02.7]} 74... Ke4 {[%clk 0:00:07.8]} 75. Bb5 {[%clk 0:00:03.2]}
75... Ke3 {[%clk 0:00:07.8]} 76. Kc2 {[%clk 0:00:03.2]} 76... Rg5 {[%clk
0:00:06.7]} 77. Re8+ {[%clk 0:00:03.7]} 77... Kd4 {[%clk 0:00:07.1]} 78. Re2
{[%clk 0:00:04]} 78... Rg3 {[%clk 0:00:07.2]} 79. Rf2 {[%clk 0:00:04.3]} 79...
Rc3+ {[%clk 0:00:06.6]} 80. Kb2 {[%clk 0:00:04.5]} 80... Bc1+ {[%clk 0:00:07.1]}
81. Ka2 {[%clk 0:00:05.1]} 81... Be3 {[%clk 0:00:07.7]} 82. Rf1 {[%clk
0:00:04.4]} 82... Rc2+ {[%clk 0:00:07.7]} 83. Kb1 {[%clk 0:00:05]} 83... Rd2
{[%clk 0:00:08]} 84. Bc6 {[%clk 0:00:04.5]} 84... Kc3 {[%clk 0:00:08.1]} 85. Rf5
{[%clk 0:00:04.1]} 85... Rd1+ {[%clk 0:00:06]} 86. Ka2 {[%clk 0:00:04.4]} 86...
Rd2+ {[%clk 0:00:06.6]} 87. Kb1 {[%clk 0:00:05]} 87... d4 {[%clk 0:00:05.6]} 88.
Rxc5+ {[%clk 0:00:03.6]} 88... Kxb3 {[%clk 0:00:06.2]} 89. Bd5+ {[%clk 0:00:02]}
89... Kb4 {[%clk 0:00:05.9]} 90. Rb5+ {[%clk 0:00:02.2]} 90... Kxa4 {[%clk
0:00:06.4]} 91. Rb7 {[%clk 0:00:02.8]} 91... Ka3 {[%clk 0:00:06.5]} 92. Rb3+
{[%clk 0:00:02.6]} 92... Ka4 {[%clk 0:00:06.9]} 93. Rb7 {[%clk 0:00:03.1]} 93...
Rd3 {[%clk 0:00:07.2]} 94. Kc2 {[%clk 0:00:03]} 94... Rc3+ {[%clk 0:00:07.2]}
95. Kb2 {[%clk 0:00:03.6]} 95... Bc1+ {[%clk 0:00:06.7]} 96. Ka2 {[%clk
0:00:04.2]} 96... Ra3+ {[%clk 0:00:03.6]} 97. Kb1 {[%clk 0:00:04.5]} 97... Rc3
{[%clk 0:00:04.5]} 98. Ka2 {[%clk 0:00:03.9]} 98... d3 {[%clk 0:00:04.8]} 99.
Bb3+ {[%clk 0:00:03.6]} 99... Rxb3 {[%clk 0:00:05.4]} 100. Rxb3 {[%clk
0:00:04.3]} 100... d2 {[%clk 0:00:06.3]} 101. Rd3 {[%clk 0:00:04.6]} 101... Kb4
{[%clk 0:00:06.9]} 102. Kb1 {[%clk 0:00:02.9]} 102... a4 {[%clk 0:00:07.3]} 103.
Kc2 {[%clk 0:00:02.7]} 103... Kc4 {[%clk 0:00:07.8]} 104. Rd8 {[%clk 0:00:02.8]}
104... a3 {[%clk 0:00:08.2]} 105. Rc8+ {[%clk 0:00:03.5]} 105... Kd4 {[%clk
0:00:08.4]} 106. Rd8+ {[%clk 0:00:03.6]} 106... Ke3 {[%clk 0:00:09]} 107. Ra8
{[%clk 0:00:02.9]} 107... Ke2 {[%clk 0:00:09]} 108. Re8+ {[%clk 0:00:03.4]}
108... Kf3 {[%clk 0:00:08]} 109. Kd1 {[%clk 0:00:03.2]} 109... Kf4 {[%clk
0:00:07.3]} 110. Ra8 {[%clk 0:00:03.7]} 110... Ke3 {[%clk 0:00:07.8]} 111. Re8+
{[%clk 0:00:03.9]} 111... Kd3 {[%clk 0:00:08.3]} 112. Rc8 {[%clk 0:00:03.2]}
112... Bb2 {[%clk 0:00:06.5]} 113. Rd8+ {[%clk 0:00:03.2]} 113... Bd4 {[%clk
0:00:06.8]} 114. Ra8 {[%clk 0:00:02.8]} 114... Bc5 {[%clk 0:00:07.2]} 115. Rxa3+
{[%clk 0:00:01.9]} 115... Bxa3 {[%clk 0:00:07.1]} 1/2-1/2